[Event "45th FIDE Olympiad 2024"]
[Site "Budapest"]
[Date "2024.09.18"]
[Round "7.89"]
[White "Schitco, Ivan"]
[Black "Maksimovic, Bojan"]
[Result "1/2-1/2"]
[ECO "A21"]
[WhiteElo "2527"]
[BlackElo "2503"]
[Annotator "TA"]
[PlyCount "121"]
[EventDate "2024.09.05"]
[EventType "team-tourn"]
[EventCountry "HUN"]
[SourceTitle "playchess.com"]
[Source "ChessBase"]
[SourceQuality "1"]
[WhiteTeam "Moldova"]
[BlackTeam "Bosnia & Herzegovina"]
[WhiteTeamCountry "MDA"]
[BlackTeamCountry "BIH"]
[TimeControl "40/5400+30:1800+30"]

{[%evp 58,121,0,0,0,0,0,-68,-82,-163,-157,-158,-180,-187,0,0,0,0,0,0,0,0,0,0,0,0,0,0,0,0,0,0,0,0,0,0,0,0,0,0,0,0,0,0,0,0,0,0,0,0,0,0,0,0,0,0,0,0,0,0,0,0,0,0,0,0]} 1. c4 e5 2. Nc3 Bb4 3. Nd5 Be7 4. d4 d6 5. e4 Nf6 6. Nxe7 {A21: English Opening: 1...e5 2 Nc3.} Qxe7 7. f3 O-O 8. Ne2 exd4 9. Qxd4 Nc6 10. Qc3 Ne5 11. Nf4 $146 ({Predecessor:} 11. Bg5 Re8 12. Qc2 h6 13. Bh4 c6 14. O-O-O d5 15. cxd5 cxd5 16. exd5 Bd7 17. Nc3 {1-0 Kjartansson,G (2503)-Gretarsson,H (2588) ISL-ch Kopavogur 2021 (4)}) 11... Ng6 12. Nxg6 fxg6 13. Be3 b6 14. Be2 Be6 15. O-O Nh5 16. Rf2 Nf4 17. Bf1 g5 18. Re1 Ng6 19. b3 Rae8 20. Qd2 h6 21. Bd4 Qf7 22. g3 Bc8 23. Bc3 Ne5 24. Bg2 Bb7 25. Ref1 Qe7 26. h3 Ng6 27. Kh2 h5 28. f4 h4 29. fxg5 hxg3+ (29... Bxe4 30. Rxf8+ Rxf8 $14) 30. Kxg3 Rxf2 (30... Bxe4 31. Rxf8+ Rxf8 32. Rxf8+ Kxf8 33. Bxe4 Qxe4 34. Qd4 $14) 31. Rxf2 Bxe4 32. Re2 ({White should play} 32. Bxe4 $11 Qxe4 33. Qd5+ Qxd5 34. cxd5) 32... d5 $1 $15 33. Bxe4 (33. Qxd5+ $17 {keeps fighting.} Bxd5 34. Bxd5+ Kh7 35. Rxe7 Rxe7 36. Kf3) 33... dxe4 $19 34. Qd5+ {[#]} Kh7 $1 35. h4 Rd8 $2 (35... c6 $1 $19 {[%cal Rc6d5]} 36. Qxc6 e3) 36. Qxe4 $11 Qxe4 37. Rxe4 Rd3+ 38. Kg4 Rxc3 39. h5 Nf8 40. Re7 Kg8 41. Rxc7 b5 42. g6 Rc2 43. a4 bxa4 44. bxa4 a6 45. Rc5 Nd7 46. Rc8+ Nf8 47. a5 Ra2 48. Rc5 Nd7 49. Rc8+ Nf8 50. c5 Rxa5 51. Kf5 Ra1 52. Ke5 Rh1 53. c6 Rxh5+ 54. Kd6 Rh1 (54... Rg5 55. Rxf8+ Kxf8 56. c7 Rxg6+ 57. Kd7 $18) 55. Ra8 Rd1+ 56. Ke7 (56. Kc5 $5 Rc1+ $8 57. Kd5 $11) 56... Re1+ 57. Kd6 Rd1+ $1 (57... Re6+ 58. Kd5 Rxg6 (58... Re7 $2 59. Kc5 $18) 59. c7 $18 (59. Rxa6 Ne6 $17)) 58. Kc5 Rc1+ 59. Kb6 (59. Kd6 $5 Rd1+ $8 $11) 59... Rb1+ 60. Kc5 (60. Kxa6 Ra1+ 61. Kb7 Rxa8 62. Kxa8 Nxg6 63. Kb7 Ne7 64. Kc7 g5 (64... Nxc6 65. Kxc6 Kh7 66. Kd5 Kh6 67. Ke4 Kg5 68. Kf3 Kh4 69. Kg2 Kg4 70. Kh2 Kf3 71. Kh1 Kg3 72. Kg1 g5 73. Kh1 Kh3 74. Kg1 g4 75. Kf2 g3+ 76. Kf1 Kh2 77. Ke2 g2 78. Kd3 g1=Q 79. Kc4 Qg5 80. Kc3 Qc5+ 81. Kb3 Kg3 82. Kb2 Qb4+ 83. Kc2 Kf3 84. Kd3 Kf2 85. Kc2 Ke3 86. Kc1 Kd3 87. Kd1 Qd2#) 65. Kd6 Nxc6 66. Kd5 Kf7 67. Ke4 Ke6 68. Ke3 Kf5 69. Kf3 g4+ 70. Ke3 Ne7 71. Kd4 Kf4 72. Kd3 g3 (72... Kf3 73. Kd4 g3 74. Ke5 g2 75. Ke6 g1=Q 76. Kxe7 Qc5+ 77. Kf6 Qd6+ 78. Kf7 Kf4 79. Kg8 Kf5 80. Kh7 Qe7+ 81. Kh6 Qd7 82. Kh5 Qh7#) 73. Ke2 Nf5 74. Kf1 Ne3+ 75. Kg1 g2 76. Kf2 Ke4 77. Ke2 g1=Q (77... g1=R 78. Kd2 Nd5 79. Ke2 Rg2+ 80. Kf1 Kf3 81. Ke1 Rc2 82. Kd1 Ne3+ 83. Ke1 Re2#) 78. Kd2 Kd4 79. Ke2 Qf1+ 80. Kd2 Qd1#) 60... Rc1+ $1 (60... Rb5+ 61. Kd6 $18 (61. Kd4 Rb4+ 62. Kd5 Rb5+ 63. Kd6 Rg5 $18)) 61. Kb6 (61. Kd6 $5 Rd1+ $8 $11) 1/2-1/2

[Event "45th FIDE Olympiad 2024"]
[Site "Budapest"]
[Date "2024.09.18"]
[Round "7.89"]
[White "Hemam, Moulaye Brahim"]
[Black "Kudakwashe, Chinake"]
[Result "1-0"]
[WhiteElo "1977"]
[BlackElo "1859"]
[PlyCount "75"]
[EventDate "2024.09.05"]
[EventType "team-tourn"]
[EventCountry "HUN"]
[WhiteTeam "Mauritania"]
[BlackTeam "Cayman Islands"]
[WhiteTeamCountry "MAU"]
[BlackTeamCountry "CAY"]
[TimeControl "40/5400+30:1800+30"]

1. e4 c6 2. c4 d5 3. cxd5 cxd5 4. exd5 Qxd5 5. Nc3 Qe5+ 6. Be2 Nf6 7. Nf3 Qd6 8. d4 a6 9. O-O e6 10. Qc2 Nc6 11. Rd1 Be7 12. Bg5 Nb4 13. Qb3 O-O 14. Ne5 b5 15. Bxf6 gxf6 16. Ne4 Qd8 17. Nxf6+ Bxf6 18. Qxb4 Bb7 19. Rd3 Be7 20. Rg3+ Kh8 21. Qd2 Bf6 22. Qh6 Be4 23. Rd1 Qe7 24. Nd7 Bg6 25. Nxf8 Rxf8 26. Bd3 Bxd4 27. Bxg6 Bxf2+ 28. Kxf2 fxg6+ 29. Rf3 Rc8 30. Qd2 e5 31. Qd6 Rc2+ 32. Kg1 Qxd6 33. Rxd6 Kg7 34. g4 Rxb2 35. g5 Rxa2 36. Rd7+ Kg8 37. Rdf7 Ra1+ 38. Kf2 1-0

[Event "45th FIDE Olympiad 2024"]
[Site "Budapest"]
[Date "2024.09.18"]
[Round "7.90"]
[White "Stojanovic, Dalibor"]
[Black "Macovei, Andrei"]
[Result "0-1"]
[ECO "C73"]
[WhiteElo "2448"]
[BlackElo "2464"]
[Annotator "ChessBase"]
[PlyCount "82"]
[EventDate "2024.09.05"]
[EventType "team-tourn"]
[EventCountry "HUN"]
[SourceTitle "playchess.com"]
[Source "ChessBase"]
[SourceQuality "1"]
[WhiteTeam "Bosnia & Herzegovina"]
[BlackTeam "Moldova"]
[WhiteTeamCountry "BIH"]
[BlackTeamCountry "MDA"]
[TimeControl "40/5400+30:1800+30"]

1. e4 e5 2. Nf3 Nc6 3. Bb5 a6 4. Ba4 Nf6 5. O-O d6 6. Bxc6+ bxc6 7. d4 exd4 8. Qxd4 Be7 9. e5 c5 10. Qf4 Nh5 11. Qe3 O-O 12. Nc3 d5 13. Rd1 d4 14. Qe2 Bb7 15. Nxd4 cxd4 16. Qxh5 c5 17. Qg4 f5 18. Qg3 Bh4 19. Qd3 Qc7 20. Ne2 Qxe5 21. Nf4 Rae8 22. Bd2 Qc7 23. Qc4+ Kh8 24. Re1 Re4 25. Rxe4 fxe4 26. g3 Be7 27. Re1 Bd6 28. Qe6 Qc6 29. Qh3 Kg8 30. c4 Bxf4 31. Bxf4 g5 32. Qg4 h6 33. Bxg5 hxg5 34. Qxg5+ Kf7 35. b4 cxb4 36. Qf5+ Qf6 37. Qh7+ Qg7 38. Qf5+ Kg8 39. Qe6+ Kh8 40. Qh3+ Qh7 41. Qe6 Qf5 0-1

[Event "45th FIDE Olympiad 2024"]
[Site "Budapest"]
[Date "2024.09.18"]
[Round "7.90"]
[White "Young, Christopher"]
[Black "Abdellahi, Khaled Abdellahi"]
[Result "1/2-1/2"]
[WhiteElo "1758"]
[BlackElo "1894"]
[Annotator "COMBH"]
[PlyCount "97"]
[EventDate "2024.09.05"]
[EventType "team-tourn"]
[EventCountry "HUN"]
[WhiteTeam "Cayman Islands"]
[BlackTeam "Mauritania"]
[WhiteTeamCountry "CAY"]
[BlackTeamCountry "MAU"]
[TimeControl "40/5400+30:1800+30"]

1. d4 d5 2. c4 c6 3. Nf3 Nf6 4. Nc3 e6 5. e3 Nbd7 6. Qc2 Be7 7. Bd3 dxc4 8. Bxc4 b5 9. Bd3 Bb7 10. O-O a6 11. e4 c5 12. e5 Nd5 13. Nxd5 Bxd5 14. Be4 Bxe4 15. Qxe4 O-O 16. Be3 c4 17. d5 exd5 18. Qxd5 Nc5 19. Rfd1 Qxd5 20. Rxd5 Nd3 21. b3 Rfd8 22. bxc4 bxc4 23. Rxd8+ Rxd8 24. Kf1 c3 25. a4 Bc5 26. Bxc5 Nxc5 27. Ne1 Rd4 28. Ke2 h6 29. Nf3 Rc4 30. Ne1 Nb3 31. Rb1 c2 32. Nxc2 Rxc2+ 33. Kd3 Rxf2 34. Rxb3 Rxg2 35. Rb8+ Kh7 36. Ra8 Rxh2 37. Rxa6 Ra2 38. Ke4 h5 39. Ra7 h4 40. Rxf7 h3 41. Rf1 Rxa4+ 42. Kd5 g5 43. e6 Ra2 44. Re1 Ra5+ 45. Ke4 Kg6 46. Kf3 Ra3+ 47. Kf2 Ra8 48. Kg3 Re8 49. Kxh3 1/2-1/2

[Event "45th FIDE Olympiad 2024"]
[Site "Budapest"]
[Date "2024.09.18"]
[Round "7.91"]
[White "Bologan, Victor"]
[Black "Culum, Sanjin"]
[Result "1-0"]
[ECO "B90"]
[WhiteElo "2598"]
[BlackElo "2409"]
[Annotator "TA"]
[PlyCount "69"]
[EventDate "2024.09.05"]
[EventType "team-tourn"]
[EventCountry "HUN"]
[SourceTitle "playchess.com"]
[Source "ChessBase"]
[SourceQuality "1"]
[WhiteTeam "Moldova"]
[BlackTeam "Bosnia & Herzegovina"]
[WhiteTeamCountry "MDA"]
[BlackTeamCountry "BIH"]
[TimeControl "40/5400+30:1800+30"]

{[%evp 12,69,13,22,27,10,24,13,8,15,8,16,21,0,0,0,30,36,28,33,47,47,64,73,62,45,51,16,20,44,43,8,15,2,26,24,214,218,222,0,300,285,303,295,303,161,160,162,154,157,328,254,351,347,339,338,788,435,29995,29996]} 1. e4 c5 2. Nf3 {[%cal Bg1f3,Bf3d4,Bd4e2,Be2c3][%mdl 32]} d6 3. d4 cxd4 4. Nxd4 Nf6 5. Nc3 a6 6. h3 e5 7. Nde2 h5 8. Bg5 Be6 9. Bxf6 Qxf6 {The position is equal.} 10. Nd5 Qd8 11. Qd3 Nd7 12. Nec3 g6 13. O-O-O Rc8 14. Kb1 Nc5 15. Qe2 Bg7 16. h4 O-O 17. f3 f5 18. Qe3 Kh7 19. Be2 Bh6 20. Qg1 Bxd5 21. Nxd5 {Black must now prevent exf5.} (21. Rxd5 {simplifies} f4 22. Qd1 Rc6 23. Rd2) 21... fxe4 22. fxe4 Nxe4 {...Ng3 would now be deadly.} 23. g4 $1 hxg4 $2 {[#]} (23... Nf2 $1 $11) 24. h5 $1 $18 (24. Qxg4 Nf2 25. Qg2 Nxd1 $11) 24... Nf2 {[#] Threatens to win with ...Qg5.} 25. Bxg4 $2 (25. hxg6+ $1 $18 Kg7 26. Rxh6 (26. Bxg4 Nxh1 27. Qxh1 Rc4 $11) 26... Kxh6 27. g7 (27. Qh2+ Kxg6 28. Rf1 Qg5 $11) 27... Kxg7 (27... Nxd1 28. gxf8=R Qxf8 29. Qxd1 $18) 28. Bxg4) 25... Qg5 $2 {[%mdl 8192]} 26. Bxc8 Nxd1 27. Qxd1 {aiming for hxg6+.} (27. Bxb7 $2 Qc1#) 27... Rxc8 28. Rg1 (28. hxg6+ $142 Kg7 29. Nc3) 28... Qd2 29. Qxd2 (29. hxg6+ Kg7 $17) 29... Bxd2 30. Rxg6 $16 {KRB-KRN} (30. hxg6+ Kg7 31. Rg4 Bh6 $17) 30... e4 $2 (30... Be1 $16 31. Rxd6 Bh4) 31. c3 {Hoping for Nf6+.} (31. Rxd6 Bg5 $16) 31... Rf8 32. Nf6+ (32. Rxd6 Bg5 $14) 32... Kh8 33. Nxe4 Rf1+ 34. Kc2 Bf4 (34... Be3 $18 35. Kd3 (35. Rxd6 Rh1 $18) (35. Nxd6 Rf2+ 36. Kd3 Bc1 $18) 35... Ba7 36. Nxd6 Rf2) 35. Nf6 {Weighted Error Value: White=0.22 (precise) /Black=0.68.  Loses game:     	---       	Black=3      Missed win:     	White=1     	---        Mistake:       	White=1     	Black=1      Inaccurate:     	White=3     	Black=2      OK:         	White=12    	Black=6      Best:        	---       	Black=4      Strong:       	White=2     	---} 1-0

[Event "45th FIDE Olympiad 2024"]
[Site "Budapest"]
[Date "2024.09.18"]
[Round "7.91"]
[White "Cheikhna, Mohamed Lemine"]
[Black "Shaw, Clifford"]
[Result "0-1"]
[WhiteElo "1884"]
[BlackElo "1744"]
[Annotator "COMBH"]
[PlyCount "56"]
[EventDate "2024.09.05"]
[EventType "team-tourn"]
[EventCountry "HUN"]
[WhiteTeam "Mauritania"]
[BlackTeam "Cayman Islands"]
[WhiteTeamCountry "MAU"]
[BlackTeamCountry "CAY"]
[TimeControl "40/5400+30:1800+30"]

1. e4 e6 2. d4 d5 3. exd5 exd5 4. Bd3 Nc6 5. c3 Bd6 6. Qf3 Be6 7. Ne2 Qd7 8. Bf4 Nf6 9. h3 O-O-O 10. O-O Rde8 11. Bxd6 Qxd6 12. Nd2 Kb8 13. a4 Nd7 14. Qg3 Qe7 15. a5 g5 16. b4 h5 17. b5 Nd8 18. Rfb1 b6 19. axb6 Nxb6 20. Ra2 h4 21. Qe3 g4 22. hxg4 Qd7 23. Nb3 Bxg4 24. Qc1 Qd6 25. Nc5 a5 26. Nf4 h3 27. Bf1 hxg2 28. Nxg2 Qh2# {0-} 0-1

[Event "45th FIDE Olympiad 2024"]
[Site "Budapest"]
[Date "2024.09.18"]
[Round "7.92"]
[White "Marjanovic, Dejan"]
[Black "Iordachescu, Viorel"]
[Result "1-0"]
[ECO "A45"]
[WhiteElo "2365"]
[BlackElo "2572"]
[Annotator "TA"]
[PlyCount "87"]
[EventDate "2024.09.05"]
[EventType "team-tourn"]
[EventCountry "HUN"]
[SourceTitle "playchess.com"]
[Source "ChessBase"]
[SourceQuality "1"]
[WhiteTeam "Bosnia & Herzegovina"]
[BlackTeam "Moldova"]
[WhiteTeamCountry "BIH"]
[BlackTeamCountry "MDA"]
[TimeControl "40/5400+30:1800+30"]

{[%evp 9,87,41,41,38,43,47,42,41,47,46,55,70,77,75,77,79,80,81,79,79,88,67,97,99,100,110,106,95,99,101,112,60,61,58,95,97,154,171,199,178,277,189,182,120,110,115,133,100,330,332,330,337,776,785,785,783,769,770,1513,736,725,707,687,667,706,725,717,708,1035,1004,29966,29969,29975,29976,29976,29977,29977,29978,29977,29977]} 1. d4 Nf6 2. Bg5 e6 3. e4 c5 4. d5 h6 5. Bxf6 Qxf6 6. Nc3 a6 7. Nf3 d6 8. a4 {White is slightly better.} Nd7 9. Be2 g5 10. O-O h5 11. dxe6 fxe6 {[#]} 12. e5 $1 Nxe5 13. Nxe5 Qxe5 14. Bxh5+ Kd8 {[%cal Og5g4] ...g4! would now be deadly.} 15. Re1 Qf6 16. Bg4 Bd7 17. h3 Kc7 18. Ne4 Qg7 {[%cal Od6d5]} 19. Qd2 Be7 {[%cal Od6d5]} 20. Qe3 {White is more active.} ({White should play} 20. c4 $16) 20... Raf8 $14 {[%cal Oh8h6]} 21. a5 Qd4 22. Qb3 (22. Nxg5 $2 Qxe3 (22... Qxb2 $2 23. Nxe6+ Bxe6 24. Qxe6 $18) 23. Nxe6+ Qxe6 24. Bxe6 Bc6 $19) 22... Rf4 ({Black should try} 22... Qb4) 23. c3 $16 {[%cal Bc2c3,Bc3c4][%mdl 32] Really sharp!} Qg7 {[%cal Of4g4]} 24. Bxe6 Bb5 (24... Bxe6 $142 25. Qxe6 Rh6) 25. c4 Bc6 {[#]} 26. Bd5 (26. Nc3 $1 $18 {Bd5 is the strong threat.} Kb8 27. Bd5 Bxd5 28. Nxd5) 26... Bxd5 27. cxd5 $40 {[%mdl 128] White attacks with force.} g4 28. Nxd6 Rb4 {A mistake that costs the game.} (28... Bxd6 $16 {might work better.} 29. Qb6+ Kc8 (29... Kd7 $2 30. Qxb7+ Bc7 31. Qc6+ Kc8 32. d6 $18) 30. Qxd6 Qd4 31. Qe6+ Kb8 32. Qe5+ Qxe5 33. Rxe5 gxh3) 29. Qc3 $18 Qxc3 30. bxc3 Rb3 $2 (30... Rf4) 31. Nf7 Bf6 32. Nxh8 Bxh8 {[%mdl 4096] Endgame. KRR-KRB} 33. Rad1 {Hoping for d6+.} Bxc3 34. Re3 (34. d6+ $142 Kc6 35. Re3 (35. d7 Bxa5 36. Re6+ Kb5 $18)) 34... Kd6 35. hxg4 {[%cal Bh3g4,Bg4g5,Bg5g6][%mdl 32] Threatens to win with g5.} c4 36. Re6+ Kd7 37. Re4 Bxa5 38. Rxc4 Bc3 39. d6 {White threatens Rc7+ and mate.} Be5 40. g5 {White mates.} Rb6 41. Rc7+ Kd8 42. g6 Rxd6 43. Rxd6+ (43. Rxb7 $2 Rxd1#) 43... Kxc7 44. Re6 {Weighted Error Value: White=0.19 (very precise) /Black=0.36.  Loses game:     	---       	Black=1      Mistake:       	White=2     	Black=3      Inaccurate:     	White=1     	Black=2      OK:         	White=10    	Black=12     Best:        	White=3     	Black=1} 1-0

[Event "45th FIDE Olympiad 2024"]
[Site "Budapest"]
[Date "2024.09.18"]
[Round "7.92"]
[White "Tracey, Shaun M"]
[Black "Abdou, Ahmed Alem"]
[Result "0-1"]
[WhiteElo "1684"]
[BlackElo "1897"]
[Annotator "COMBH"]
[PlyCount "100"]
[EventDate "2024.09.05"]
[EventType "team-tourn"]
[EventCountry "HUN"]
[WhiteTeam "Cayman Islands"]
[BlackTeam "Mauritania"]
[WhiteTeamCountry "CAY"]
[BlackTeamCountry "MAU"]
[TimeControl "40/5400+30:1800+30"]

1. e4 c6 2. d4 d5 3. f3 g6 4. Nc3 Bg7 5. Be3 Nf6 6. e5 Ng8 7. f4 Nh6 8. h3 Nf5 9. Bf2 h5 10. Qd2 b6 11. Nf3 Ba6 12. O-O-O h4 13. e6 fxe6 14. Ng5 Qd6 15. Re1 Bc8 16. Bd3 Bf6 17. Rhf1 Bxg5 18. fxg5 Ba6 19. Be3 Bxd3 20. Qxd3 O-O 21. Bf4 Qd7 22. Be5 c5 23. Ne2 Nc6 24. Nf4 c4 25. Qd1 Kh7 26. Rf3 Ng3 27. c3 Ne4 28. Qc2 Rf5 29. Ref1 Raf8 30. Qd1 Nxe5 31. dxe5 Nxg5 32. R3f2 Qc7 33. Qg4 Qxe5 34. Qxh4+ Kg7 35. Re2 Rxf4 36. Rxe5 Rxh4 37. Rxf8 Kxf8 38. Rxg5 Kf7 39. Kd2 Rf4 40. Ke2 Kf6 41. Rg3 Kf5 42. Ke3 e5 43. Ke2 a5 44. Ke1 d4 45. cxd4 exd4 46. Ke2 e5 47. Ke1 e4 48. Ra3 e3 49. Ra4 d3 50. g3 Rd4 {0-} 0-1

[Event "45th FIDE Olympiad 2024"]
[Site "Budapest"]
[Date "2024.09.18"]
[Round "7.93"]
[White "Bachmann, Axel"]
[Black "Albornoz Cabrera, Carlos Daniel"]
[Result "1/2-1/2"]
[ECO "E04"]
[WhiteElo "2560"]
[BlackElo "2579"]
[Annotator "RC"]
[PlyCount "89"]
[EventDate "2024.09.05"]
[EventType "team-tourn"]
[EventCountry "HUN"]
[SourceTitle "playchess.com"]
[Source "ChessBase"]
[SourceQuality "1"]
[WhiteTeam "Paraguay"]
[BlackTeam "Cuba"]
[WhiteTeamCountry "PAR"]
[BlackTeamCountry "CUB"]
[TimeControl "40/5400+30:1800+30"]

1. d4 Nf6 2. Nf3 d5 3. c4 e6 4. g3 dxc4 5. Bg2 Nc6 6. O-O Rb8 7. Nc3 b5 8. Ne5 Nxe5 9. dxe5 Nd7 10. Qd4 Bb7 11. Bxb7 Rxb7 12. Rd1 c5 13. Qe4 Qc8 14. a4 b4 15. Nb5 a6 16. Nd6+ Bxd6 17. Rxd6 O-O 18. Rxa6 c3 19. bxc3 bxc3 20. Rd6 Rb4 21. Qe3 Nb6 22. Qxc3 Nxa4 23. Qc2 Nb6 24. Bd2 Rb5 25. Qd3 c4 26. Qd4 Nd5 27. e4 Ne7 28. Rc1 Rc5 29. h4 h5 30. Bb4 Rc7 31. Ba5 Rc5 32. Bb4 Rc7 33. Qd1 Qb7 34. Rd8 Rxd8 35. Qxd8+ Kh7 36. Bd6 Rd7 37. Qe8 Nc8 38. Bc5 Qc6 39. Kh2 Rc7 40. Qxc6 Rxc6 41. Bd4 Ne7 42. Kg2 Kg6 43. Kf3 f5 44. exf6 gxf6 45. Ke2 1/2-1/2

[Event "45th FIDE Olympiad 2024"]
[Site "Budapest"]
[Date "2024.09.18"]
[Round "7.93"]
[White "Kamara, Ansumana"]
[Black "Enemchukwu, Chinedu Benjamin"]
[Result "1-0"]
[WhiteElo "1876"]
[BlackElo "2001"]
[PlyCount "101"]
[EventDate "2024.09.05"]
[EventType "team-tourn"]
[EventCountry "HUN"]
[WhiteTeam "Sierra Leone"]
[BlackTeam "Saint Vincent and the Grenadines"]
[WhiteTeamCountry "SIE"]
[TimeControl "40/5400+30:1800+30"]

1. e4 d5 2. exd5 Nf6 3. c4 e6 4. dxe6 Bxe6 5. Nf3 Nc6 6. Be2 Bc5 7. O-O Qd7 8. a3 a5 9. Nc3 O-O 10. d3 Rad8 11. Qb3 b6 12. Bg5 Be7 13. Nb5 Bg4 14. Rad1 h6 15. Bf4 Rc8 16. d4 Nh5 17. Be3 Nf6 18. d5 Nb8 19. Ne5 Qf5 20. Nxg4 Nxg4 21. Bxg4 Qxg4 22. h3 Qf5 23. d6 cxd6 24. Nxd6 Bxd6 25. Rxd6 Qe4 26. Rc1 Nc6 27. Qxb6 Rfe8 28. Qb7 Red8 29. Rcd1 Qe8 30. c5 Ne5 31. Qd5 Rxd6 32. cxd6 Nd7 33. Qxa5 Qe6 34. Qd5 Qe8 35. b4 Ra8 36. Qb3 Qd8 37. b5 Qa5 38. b6 Rb8 39. Rb1 Qe5 40. Qb4 Rb7 41. a4 f5 42. a5 Nb8 43. Qc4+ Kh7 44. a6 Nxa6 45. Qxa6 Qe4 46. Qb5 g5 47. d7 f4 48. Bxf4 Qxf4 49. d8=Q Rf7 50. Qbd3+ Kg7 51. Q3d4+ 1-0

[Event "45th FIDE Olympiad 2024"]
[Site "Budapest"]
[Date "2024.09.18"]
[Round "7.94"]
[White "Quesada Perez, Luis Ernesto"]
[Black "Delgado Ramirez, Neuris"]
[Result "1/2-1/2"]
[ECO "D50"]
[WhiteElo "2578"]
[BlackElo "2484"]
[Annotator "TA"]
[PlyCount "88"]
[EventDate "2024.09.05"]
[EventType "team-tourn"]
[EventCountry "HUN"]
[SourceTitle "playchess.com"]
[Source "ChessBase"]
[SourceQuality "1"]
[WhiteTeam "Cuba"]
[BlackTeam "Paraguay"]
[WhiteTeamCountry "CUB"]
[BlackTeamCountry "PAR"]
[TimeControl "40/5400+30:1800+30"]

{[%evp 14,88,23,18,23,19,19,20,9,13,31,24,31,34,38,39,41,34,27,19,25,18,47,0,12,10,4,11,12,0,0,0,3,0,5,0,1,0,25,2,18,17,22,22,26,4,4,14,8,12,13,1,12,0,0,0,0,-15,0,-11,13,15,9,12,8,0,0,0,0,0,0,0,0,0,0,0,0]} 1. d4 Nf6 2. c4 e6 3. Nf3 d5 4. Nc3 c5 5. cxd5 cxd4 6. Qxd4 exd5 7. Bg5 {[%cal Bc1g5,Bg5h4,Bh4g3][%mdl 32]} Be7 8. e3 O-O 9. Qa4 h6 10. Bh4 Qb6 11. Qb5 g5 (11... Qxb5 {simplifies} 12. Bxb5 Be6 13. Nd4 Rc8) 12. Bg3 (12. Qxb6 {simplifies} axb6 13. Bg3 Be6 14. a3) 12... Bb4 (12... Nc6 {simplifies} 13. Qxb6 axb6 14. Bd3 Be6) 13. Be5 Qxb5 14. Bxb5 Ne4 15. a3 Bxc3+ 16. Bxc3 Nxc3 17. bxc3 Bd7 18. Bd3 (18. a4 $14 {should be considered.}) 18... Nc6 19. Kd2 Na5 20. Nd4 {[%cal Og2g4] Prevents Nb3+.} Kg7 21. Rhb1 b6 22. Ba6 Rad8 23. a4 Kf6 24. Rb4 Bc8 25. Bd3 Be6 {[#]} 26. h4 $1 Rc8 (26... gxh4 27. Rh1) 27. Rh1 Nc6 28. Rb5 g4 29. Ra1 Na5 {The position is equal.} 30. Rb4 Rg8 31. Re1 Nc6 32. Rb5 Na5 33. Ra1 Rc5 34. Rb4 Bd7 35. Ra3 Rgc8 36. Nb5 Bxb5 37. axb5 h5 38. Rf4+ Kg7 39. Kc2 R8c7 40. Rf5 Nc4 41. Rb3 Na5 42. Ra3 Nc4 43. Rb3 Na5 44. Ra3 Nc4 {Weighted Error Value: White=0.05 (flawless) /Black=0.04 (flawless) .  Mistake:       	White=1     	---        Inaccurate:     	---       	Black=1      OK:         	White=12    	Black=17     Best:        	---       	Black=1} 1/2-1/2

[Event "45th FIDE Olympiad 2024"]
[Site "Budapest"]
[Date "2024.09.18"]
[Round "7.94"]
[White "Cottle, Brian S"]
[Black "Winston Gerald, Mansfield Thomas"]
[Result "1-0"]
[WhiteElo "1804"]
[BlackElo "1950"]
[PlyCount "77"]
[EventDate "2024.09.05"]
[EventType "team-tourn"]
[EventCountry "HUN"]
[WhiteTeam "Saint Vincent and the Grenadines"]
[BlackTeam "Sierra Leone"]
[BlackTeamCountry "SIE"]
[TimeControl "40/5400+30:1800+30"]

1. c4 Nf6 2. Nc3 d6 3. g3 c6 4. Bg2 e5 5. e3 Bf5 6. d4 Qc7 7. Nge2 Nbd7 8. b3 Be7 9. Bb2 O-O 10. O-O Rfe8 11. Rc1 Bg6 12. b4 Nb6 13. Qb3 Bd3 14. c5 dxc5 15. bxc5 Nbd7 16. Rfd1 Ba6 17. Rd2 Bf8 18. a4 Rad8 19. Rcc2 Qa5 20. Ba3 g6 21. h3 exd4 22. exd4 Bh6 23. f4 Re3 24. Bb4 Qc7 25. Qb2 Bd3 26. Nd1 Bxc2 27. Nxe3 Bxa4 28. Qa2 b5 29. cxb6 Nxb6 30. Nc3 Bb5 31. d5 a6 32. Ba5 cxd5 33. Ncxd5 Nfxd5 34. Bxd5 Qc1+ 35. Kh2 Rxd5 36. Nxd5 Nxd5 37. Qxd5 Bc6 38. Rd1 Qc2+ 39. Rd2 1-0